bitfinex/quotes_SOLUSD_20251025
["timestamp","ask_amount","ask_price","bid_price","bid_amount"]
[1761373498542,2.53754286,194.5,194.48,0.71]
[1761373498722,2.53754286,194.5,194.46,41.37238686]
[1761373498924,3.20754286,194.5,194.47,0.67]
[1761373500747,2.29529203,194.5,194.47,0.67]
[1761373501049,1.62529203,194.49,194.47,0.67]
[1761373501421,7.43671398,194.5,194.47,0.67]
[1761373508952,0.67,194.49,194.46,36.23]
[1761373509563,2.29529203,194.49,194.46,35.56]
[1761373509767,1.62529203,194.47,194.43,0.67]
[1761373510050,1.62529203,194.46,194.43,35.56]
[1761373510261,1.62529203,194.46,194.43,36.23]
[1761373510645,1.62529203,194.46,194.44,0.67]
[1761373510833,2.29529203,194.47,194.44,0.67]
[1761373511439,6.76737594,194.48,194.44,0.67]
[1761373511648,3.84834945,194.47,194.44,0.67]
[1761373511834,2.29529203,194.48,194.44,0.67]
[1761373512035,3.84834888,194.47,194.44,0.67]
[1761373512247,2.29529203,194.48,194.44,0.67]
[1761373513650,1.62529203,194.47,194.44,0.67]
[1761373516462,6.76748866,194.47,194.44,0.67]
[1761373516763,1.62529203,194.46,194.44,0.67]
[1761373519447,1.62529203,194.49,194.44,7.43811296]
[1761373519863,1.62529203,194.49,194.45,0.69]
[1761373520161,1.62529203,194.49,194.46,35.56]
[1761373520561,1.62529203,194.49,194.47,0.69]
[1761373520856,1.62529203,194.5,194.47,0.69]
[1761373521238,7.48665655,194.51,194.47,0.69]
[1761373521438,3.8485584,194.5,194.47,0.69]
[1761373521641,7.48665655,194.51,194.47,0.69]
[1761373521857,3.84855818,194.5,194.47,0.69]
[1761373522060,7.48665655,194.51,194.47,0.69]
[1761373522246,5.47385043,194.5,194.47,0.69]
[1761373522447,1.62529203,194.5,194.47,0.69]
[1761373523663,2.34529203,194.5,194.47,0.69]
[1761373523963,7.48669369,194.5,194.47,0.69]
[1761373524764,1.62529203,194.49,194.47,0.69]
[1761373524959,7.48669369,194.5,194.46,35.56]
[1761373525147,7.48669369,194.5,194.46,36.25]
[1761373525343,5.47420071,194.49,194.46,36.25]
[1761373525543,1.62529203,194.49,194.46,36.25]
[1761373526052,2.34529203,194.49,194.46,36.25]
[1761373526770,0.72,194.48,194.46,35.56]
[1761373526944,1.62529203,194.49,194.46,36.25]
[1761373527140,2.34529203,194.49,194.46,36.25]
[1761373529480,5.86140166,194.5,194.47,0.69]
[1761373529654,5.47471668,194.49,194.46,35.56]
[1761373529954,2.34529203,194.49,194.46,36.25]
[1761373530561,1.62529203,194.49,194.46,36.25]
[1761373536769,1.62529203,194.49,194.47,0.69]
[1761373537762,1.62529203,194.49,194.46,35.56]
[1761373537968,1.62529203,194.49,194.46,36.25]
[1761373538152,1.62529203,194.5,194.47,0.69]
[1761373538354,2.34529203,194.5,194.47,0.69]
[1761373542072,2.34529203,194.5,194.48,15.44123323]
[1761373542466,2.34529203,194.5,194.47,0.69]
[1761373542658,2.34529203,194.5,194.47,16.13123323]
[1761373542861,2.34529203,194.49,194.46,35.56]
[1761373543059,2.34529203,194.49,194.46,36.25]
[1761373543284,2.34529203,194.49,194.46,51.69202805]
[1761373544061,16.16123323,194.54,194.47,5.83218131]
[1761373544383,17.78652526,194.54,194.48,1.62529203]
[1761373544579,17.78652526,194.54,194.49,35.54]
[1761373544783,2.34529203,194.54,194.49,36.23]
[1761373545090,0.72,194.54,194.5,0.69]
[1761373545398,0.72,194.54,194.5,10.97146351]
[1761373545988,0.72,194.54,194.51,0.69]
[1761373546291,2.34529203,194.54,194.51,0.69]
[1761373546465,2.34529203,194.54,194.52,5.13987042]
[1761373546664,2.34529203,194.54,194.52,40.67987042]
[1761373548188,2.34529203,194.54,194.52,35.54]
[1761373548590,2.34529203,194.54,194.53,12.84889544]
[1761373552698,1.62529203,194.54,194.53,12.84889544]
[1761373554691,2.34529203,194.54,194.53,12.84889544]
[1761373555666,1.62529203,194.54,194.53,12.84889544]
[1761373557364,5.69384182,194.58,194.53,13.52889544]
[1761373557581,6.41384182,194.58,194.53,12.84889544]
[1761373557788,1.62529203,194.56,194.52,40.68076872]
[1761373557991,1.62529203,194.56,194.53,0.68]
[1761373558169,2.34529203,194.56,194.53,16.11567183]
[1761373558367,1.62529203,194.56,194.53,15.43567183]
[1761373558590,1.62529203,194.55,194.53,15.43567183]
[1761373558867,2.29529203,194.55,194.52,36.25]
[1761373559080,1.62529203,194.54,194.52,36.25]
[1761373559307,2.29529203,194.54,194.52,35.54]
[1761373559480,2.29529203,194.54,194.53,5.69407957]
[1761373559669,2.29529203,194.54,194.52,35.54]
[1761373560169,2.29529203,194.54,194.52,40.6798159]
[1761373560893,2.53865739,194.54,194.52,40.6798159]
[1761373561102,0.67,194.53,194.52,40.6798159]
[1761373562378,3.20865739,194.53,194.52,35.54]
[1761373564308,0.67,194.53,194.52,35.54]
[1761373564918,3.20865739,194.54,194.52,35.54]
[1761373568912,0.67,194.54,194.52,35.54]
[1761373570918,2.53865739,194.55,194.53,0.71]
[1761373571092,0.67,194.55,194.52,40.68084007]
[1761373571297,0.67,194.55,194.52,41.39084007]
[1761373579222,3.20865739,194.55,194.52,41.39084007]
[1761373580530,2.53865739,194.55,194.52,40.68084007]
[1761373580711,0.67,194.54,194.52,40.68084007]
[1761373581036,2.53865739,194.55,194.52,40.68084007]
[1761373581237,3.20865739,194.55,194.52,40.68084007]
[1761373582071,3.20865739,194.55,194.52,41.38084007]
[1761373582699,0.67,194.54,194.52,40.68084007]
[1761373583130,2.53865739,194.55,194.52,40.68084007]
[1761373583331,3.20865739,194.55,194.52,40.68084007]
[1761373583530,3.20865739,194.55,194.52,41.38084007]
[1761373585348,0.67,194.54,194.52,35.54]
[1761373591030,2.53865739,194.55,194.52,40.68084022]
[1761373591228,23.11816381,194.56,194.52,41.38084022]
[1761373591557,0.87,194.63,194.56,33.75647521]
[1761373591736,0.2,194.63,194.58,10.87647521]
[1761373592055,0.2,194.63,194.59,35.6]
[1761373592234,0.2,194.63,194.59,40.1961118]
[1761373592429,0.2,194.63,194.6,5.13874614]
[1761373592628,0.2,194.63,194.61,35.6]
[1761373594141,0.2,194.63,194.61,44.57217404]
[1761373595429,0.2,194.63,194.61,44.57021239]
[1761373595830,0.87,194.63,194.61,44.57021239]
[1761373598538,0.2,194.63,194.61,44.57021239]
[1761373598743,0.2,194.63,194.61,47.10886978]
[1761373602354,0.87,194.63,194.61,47.10886978]
[1761373603470,0.87,194.63,194.61,44.57021239]
[1761373603762,0.87,194.62,194.61,35.6]
[1761373605955,0.87,194.62,194.59,40.69892962]
[1761373606140,0.67,194.61,194.59,40.69892962]
[1761373610685,0.67,194.61,194.54,2.05756024]
[1761373610864,0.67,194.61,194.56,22.88]
[1761373611048,0.67,194.61,194.57,35.56]
[1761373611971,0.67,194.61,194.57,40.69927693]
[1761373612349,0.67,194.61,194.57,43.23793432]
[1761373620785,0.67,194.61,194.57,42.32245007]
[1761373621185,0.67,194.61,194.57,6.76245007]
[1761373621487,1.62317314,194.59,194.53,37.18317314]
[1761373621669,1.62317314,194.6,194.53,37.18317314]
[1761373621869,0.7,194.6,194.54,1.62317314]
[1761373622062,0.7,194.59,194.54,1.62317314]
[1761373622469,0.7,194.59,194.54,5.14033103]
[1761373623182,0.7,194.59,194.54,6.76350417]
[1761373625191,5.13927433,194.58,194.53,35.56]
[1761373625392,1.62317314,194.55,194.53,35.56]
[1761373625566,0.7,194.54,194.51,35.56]
[1761373627291,7.46356325,194.54,194.51,35.56]
[1761373627581,7.46356325,194.54,194.49,35.56]
[1761373627771,2.32317314,194.53,194.49,35.56]
[1761373628169,0.7,194.52,194.49,35.56]
[1761373630586,0.7,194.52,194.49,40.70161018]
[1761373635871,1.62317314,194.51,194.48,5.1419169]
[1761373636090,1.62317314,194.51,194.48,40.7019169]
[1761373636288,0.7,194.5,194.48,40.7019169]
[1761373637674,1.62317314,194.49,194.44,10.87647521]
[1761373637875,0.7,194.48,194.44,51.5794499]
[1761373640214,0.7,194.48,194.44,53.20262304]
[1761373640803,0.7,194.48,194.44,51.5794499]
[1761373642144,2.32317314,194.48,194.44,35.56]
[1761373642302,1.62317314,194.47,194.44,35.56]
[1761373642613,2.29317314,194.47,194.44,35.56]
[1761373642803,0.67,194.46,194.44,35.56]
[1761373644208,0.55435037,194.51,194.45,10.87647521]
[1761373644395,1.62317314,194.57,194.5,1.62317314]
[1761373644600,24.50317314,194.59,194.53,1.62317314]
[1761373644902,0.67,194.58,194.54,37.24317314]
[1761373646089,0.67,194.58,194.55,5.14006682]
[1761373646587,0.67,194.58,194.54,40.76029399]
[1761373651211,1.62317314,194.57,194.54,35.62]
[1761373651722,0.67,194.56,194.54,35.62]
[1761373652021,2.29317314,194.56,194.52,40.80085955]
[1761373652405,0.67,194.55,194.52,40.80085955]
[1761373654895,2.29317314,194.55,194.52,35.66]
[1761373655099,2.29317314,194.55,194.52,40.80085058]
[1761373655335,0.67,194.54,194.52,40.80085058]
[1761373657325,2.29317314,194.54,194.52,40.80085058]
[1761373657716,0.67,194.53,194.52,40.80085058]
[1761373658421,2.29317314,194.55,194.52,40.80085058]
[1761373658820,0.67,194.54,194.52,40.80085058]
[1761373662700,0.67,194.54,194.49,25.35373834]
[1761373662701,2.29317314,194.54,194.51,5.14109647]
[1761373663104,0.67,194.53,194.51,5.14109647]
[1761373676638,5.13932639,194.58,194.52,35.6]
[1761373676843,1.62317314,194.55,194.52,35.6]
[1761373677333,0.71,194.54,194.52,35.6]
[1761373680849,0.72,194.54,194.52,40.74075518]
[1761373681250,0.72,194.54,194.52,35.6]
[1761373682238,0.72,194.56,194.52,35.6]
[1761373682442,0.72,194.58,194.52,42.36393926]
[1761373682636,0.72,194.58,194.53,1.62317314]
[1761373682834,0.72,194.58,194.54,35.6]
[1761373683531,0.72,194.58,194.54,40.74023241]
[1761373684468,0.2,194.62,194.56,2.53727047]
[1761373684750,0.72,194.6,194.57,35.6]
[1761373687751,0.72,194.6,194.57,40.73953788]
[1761373691163,0.72,194.6,194.57,35.6]
[1761373692048,0.72,194.6,194.57,40.73950284]
[1761373697952,0.72,194.6,194.57,35.6]
[1761373697953,2.53727047,194.59,194.57,35.6]
[1761373698358,0.72,194.58,194.55,35.58]
[1761373699962,0.72,194.58,194.55,40.72004818]
[1761373711267,3.09162084,194.61,194.56,10.87647521]
[1761373711268,0.68,194.61,194.56,10.87647521]
[1761373711473,0.68,194.61,194.57,35.58]
[1761373722585,5.81866981,194.61,194.57,35.58]
[1761373722771,5.81866981,194.61,194.57,43.45553799]
[1761373722968,0.68,194.6,194.57,43.45553799]
[1761373725582,0.68,194.6,194.57,35.58]
[1761373725783,0.68,194.6,194.58,5.13866981]
[1761373727194,0.68,194.6,194.57,35.58]
[1761373727377,0.68,194.6,194.57,40.71866981]
[1761373728986,0.68,194.6,194.57,35.58]
[1761373729362,0.68,194.6,194.58,5.13866981]
[1761373729561,0.68,194.6,194.57,35.58]
[1761373730074,0.2,194.62,194.59,2.53727047]
[1761373730279,0.2,194.62,194.6,35.54]
[1761373730973,0.2,194.62,194.6,37.59734859]
[1761373731175,0.2,194.62,194.6,42.73605513]
[1761373731370,0.2,194.62,194.6,40.67870654]
[1761373731575,0.2,194.62,194.61,2.05734859]
[1761373732179,0.89,194.62,194.61,2.05734859]
[1761373735398,0.89,194.62,194.6,35.54]
[1761373735582,0.89,194.62,194.6,37.59756024]
[1761373735984,0.69,194.61,194.6,37.59756024]
[1761373738979,0.69,194.61,194.6,35.54]
[1761373740604,0.2,194.62,194.6,35.54]
[1761373741479,0.89,194.62,194.6,35.54]
[1761373741981,0.69,194.61,194.6,35.54]
[1761373742776,0.2,194.62,194.6,42.73630638]
[1761373743076,0.2,194.62,194.6,44.35908423]
[1761373743276,0.2,194.62,194.6,42.30152399]
[1761373743591,0.2,194.62,194.61,2.05734859]
[1761373744295,0.2,194.62,194.61,7.19583068]
[1761373746478,0.2,194.62,194.61,5.13848209]
[1761373747287,0.2,194.62,194.61,7.19583068]
[1761373747482,0.2,194.62,194.61,5.13848209]
[1761373756992,0.89,194.62,194.61,5.13848209]
[1761373757592,0.2,194.62,194.61,5.13848209]
[1761373758400,0.89,194.62,194.61,5.13848209]
[1761373773626,0.2,194.62,194.61,5.13848209]
[1761373774019,0.2,194.62,194.61,7.19572487]
[1761373774205,0.88,194.62,194.61,7.19572487]
[1761373775731,0.2,194.62,194.61,7.19572487]
[1761373775910,0.2,194.62,194.61,19.69497793]
[1761373778630,0.2,194.62,194.61,18.07220008]
[1761373781311,0.2,194.62,194.61,19.69497793]
[1761373784638,0.2,194.62,194.61,20.20882613]
[1761373799050,0.2,194.62,194.61,18.58604828]
[1761373799244,0.2,194.62,194.61,20.20882613]
[1761373803952,0.9,194.62,194.61,18.58604828]
[1761373804258,0.9,194.62,194.61,43.08882613]
[1761373804762,0.9,194.62,194.61,44.00064464]
[1761373805863,0.9,194.62,194.61,43.48679644]
[1761373806250,0.9,194.62,194.61,18.07220008]
[1761373806555,0.9,194.62,194.61,16.0149573]
[1761373810266,0.9,194.62,194.61,18.54955366]
[1761373811461,0.9,194.62,194.61,16.0149573]
[1761373815160,0.9,194.62,194.61,18.54955366]
[1761373815365,0.2,194.62,194.61,18.54955366]
[1761373815742,0.9,194.62,194.61,18.54955366]
[1761373821368,0.9,194.62,194.61,16.0149573]
[1761373821570,0.9,194.62,194.61,18.54955366]
[1761373824276,0.9,194.62,194.61,16.0149573]
[1761373826686,0.9,194.62,194.6,38.07459636]
[1761373826687,0.9,194.62,194.6,40.67871012]
[1761373826893,0.68,194.61,194.6,51.55518533]
[1761373830678,0.68,194.61,194.6,40.67871012]
[1761373832886,0.68,194.61,194.6,35.54]
[1761373836389,3.21459636,194.61,194.6,35.54]
[1761373836891,8.20654131,194.61,194.6,35.54]
[1761373838478,13.3450234,194.61,194.6,35.54]
[1761373838677,13.3450234,194.61,194.52,28.02061103]
[1761373838881,2.53459636,194.57,194.53,46.39647521]
[1761373839392,0.68,194.56,194.53,35.52]
[1761373840093,13.3450234,194.56,194.53,35.52]
[1761373840495,0.68,194.55,194.53,35.52]
[1761373844089,3.21459636,194.55,194.53,35.52]
[1761373844296,2.53459636,194.54,194.53,35.52]
[1761373844598,3.21459636,194.54,194.53,35.52]
[1761373846701,0.68,194.54,194.53,35.52]
[1761373847381,13.60048462,194.62,194.53,43.19519164]
[1761373847581,0.68,194.57,194.54,2.53459636]
[1761373847905,0.68,194.57,194.55,35.54]
[1761373857486,3.21459636,194.57,194.55,35.54]
[1761373858404,0.71,194.56,194.55,35.54]
[1761373868690,0.71,194.58,194.55,40.68003134]
[1761373868913,2.33407691,194.58,194.55,40.68003134]
[1761373869318,0.71,194.57,194.55,40.68003134]
[1761373870497,0.71,194.58,194.55,40.68003134]
[1761373870699,0.71,194.59,194.55,40.68003134]
[1761373874328,0.71,194.6,194.55,42.30410825]
[1761373874541,0.2,194.62,194.59,1.62407691]
[1761373874852,0.2,194.62,194.61,1.62407691]
[1761373875135,0.2,194.62,194.6,48.04055212]
[1761373875333,0.2,194.62,194.6,50.0977949]
[1761373875834,0.2,194.62,194.61,6.762559]
[1761373876741,0.2,194.62,194.61,5.13848209]
[1761373876902,0.91,194.62,194.61,5.13848209]
[1761373879258,0.2,194.62,194.61,5.13848209]
[1761373882444,0.87,194.62,194.61,5.13848209]
[1761373882927,0.2,194.62,194.61,5.13848209]
[1761373884143,0.87,194.62,194.61,5.13848209]
[1761373884448,0.2,194.62,194.61,17.63903421]
[1761373885518,0.2,194.62,194.61,16.0149573]
[1761373885724,0.87,194.62,194.61,16.0149573]
[1761373888853,0.2,194.62,194.61,16.0149573]
[1761373889651,0.87,194.62,194.61,16.0149573]
[1761373890457,0.87,194.62,194.61,5.13848209]
[1761373891655,0.87,194.62,194.6,40.67848642]
[1761373891851,0.67,194.61,194.6,51.55496163]
[1761373894451,0.87,194.62,194.6,51.55496163]
[1761373896760,0.87,194.62,194.6,53.17903854]
[1761373906984,0.87,194.62,194.6,51.55496163]
[1761373907160,0.87,194.62,194.6,53.17903854]
[1761373908986,0.87,194.62,194.6,51.55496163]
[1761373909278,0.87,194.62,194.6,53.17903854]
[1761373911665,0.87,194.62,194.6,51.55496163]
[1761373911884,0.87,194.62,194.6,53.17903854]
[1761373922497,0.72,194.61,194.6,53.17903854]
[1761373922786,0.2,194.62,194.61,10.87647521]
[1761373922961,0.2,194.62,194.61,13.01440032]
[1761373923399,0.2,194.62,194.61,16.86283461]
[1761373923575,0.2,194.62,194.61,18.91965425]
[1761373924173,0.2,194.62,194.61,24.05813634]
[1761373926500,0.2,194.62,194.61,22.0013167]
[1761373926680,0.2,194.62,194.61,22.91149233]
[1761373929100,0.2,194.62,194.61,24.96820621]
[1761373930584,1e-08,194.62,194.61,56.61977192]
[1761373942319,1e-08,194.63,194.62,13.41072775]
[1761373943009,1e-08,194.63,194.62,15.46712442]
[1761373943417,1e-08,194.63,194.62,20.60534248]
[1761373944520,1e-08,194.63,194.62,56.10534248]
[1761373946592,1e-08,194.63,194.62,118.10534248]
[1761373949402,0.69000001,194.63,194.62,116.04894581]
[1761373949791,0.69000001,194.63,194.62,103.42894581]
[1761373950105,0.69000001,194.63,194.62,138.92894581]
[1761373952534,0.69000001,194.63,194.62,76.92894581]
[1761373954916,0.69000001,194.63,194.62,18.54894581]
[1761373955116,0.69000001,194.63,194.62,54.04894581]
[1761373957240,0.69000001,194.63,194.62,51.51469327]
[1761373957462,0.69000001,194.63,194.62,54.04894581]
[1761373957836,0.69000001,194.63,194.62,51.51469327]
[1761373958136,0.69000001,194.63,194.62,54.04894581]
[1761373962840,1e-08,194.63,194.62,54.04894581]
[1761373963639,1e-08,194.63,194.62,56.10565969]
[1761373964237,0.69000001,194.63,194.62,56.10565969]
[1761373973552,0.69000001,194.63,194.62,54.04894581]
[1761373981261,0.69000001,194.63,194.62,51.51469327]
[1761373984164,1e-08,194.63,194.62,54.04894581]
[1761373984374,1e-08,194.63,194.62,56.10555394]
[1761373986675,0.66000001,194.63,194.62,56.10555394]
[1761373986845,0.66000001,194.63,194.62,55.19320405]
[1761373987344,1e-08,194.63,194.62,53.5713014]
[1761373987544,1e-08,194.63,194.62,55.19320405]
[1761373987843,0.66000001,194.63,194.62,40.9513014]
[1761373988054,0.66000001,194.63,194.62,76.01659592]
[1761373993449,0.66000001,194.63,194.62,74.39469327]
[1761374000582,7.41985672,194.63,194.58,2.57095861]
[1761374000773,1.62190265,194.59,194.56,2.68252269]
[1761374000952,1.62190265,194.57,194.52,30.82]
[1761374001155,1.62190265,194.56,194.53,35.5]
[1761374001472,1.62190265,194.55,194.53,35.5]
[1761374001682,0.72,194.55,194.53,35.5]
[1761374001971,0.72,194.54,194.53,35.5]
[1761374002756,0.72,194.54,194.53,46.37647521]
[1761374004574,7.48237465,194.54,194.45,5.14270832]
[1761374004785,1.62190265,194.48,194.45,35.5]
[1761374005152,0.72,194.47,194.45,35.5]
[1761374005353,0.72,194.47,194.46,10.87647521]
[1761374006054,0.72,194.47,194.45,10.87647521]
[1761374006266,0.72,194.47,194.46,46.41647521]
[1761374009693,2.89625302,194.47,194.42,0.2]
[1761374009894,1.62190265,194.45,194.43,35.54]
[1761374010258,0.72,194.44,194.43,35.54]
[1761374010755,2.77925506,194.44,194.43,35.54]
[1761374014401,0.72,194.44,194.43,46.41647521]
[1761374015887,0.72,194.44,194.43,51.55971442]
[1761374021604,5.86182972,194.46,194.43,51.55971442]
[1761374022106,0.72,194.45,194.43,51.55971442]
[1761374023301,0.72,194.45,194.43,46.41647521]
[1761374024905,2.34190265,194.45,194.43,46.41647521]
[1761374025406,0.72,194.44,194.43,46.41647521]
[1761374029297,0.72,194.44,194.43,35.54]
[1761374039728,2.88625302,194.46,194.43,35.54]
[1761374039903,0.71,194.45,194.43,35.54]
[1761374040722,53.02431069,194.56,194.45,22.88]
[1761374040723,1.99999999,194.56,194.45,22.88]
[1761374040924,0.71,194.6,194.56,10.87647521]
[1761374041114,0.71,194.62,194.58,10.87647521]
[1761374041317,0.71,194.62,194.6,10.87647521]
[1761374041645,0.71,194.62,194.61,36.18]
[1761374042834,2.33190265,194.62,194.61,36.18]
[1761374043233,0.71,194.62,194.61,36.18]
[1761374052423,8.38419276,194.62,194.59,36.12]
[1761374052828,3.2459747,194.61,194.59,36.12]
[1761374053150,2.5359747,194.6,194.59,36.12]
[1761374053340,3.2459747,194.6,194.59,36.12]
[1761374053527,0.71,194.6,194.59,36.12]
[1761374059654,3.2459747,194.6,194.59,36.12]
[1761374060156,8.38472084,194.6,194.57,36.06]
[1761374060358,2.5359747,194.58,194.57,36.06]
[1761374060745,3.2359747,194.58,194.57,36.06]
[1761374063477,3.2359747,194.58,194.52,10.87647521]
[1761374063772,3.2359747,194.58,194.53,36.04]
[1761374063773,2.5359747,194.55,194.53,36.04]
[1761374063932,2.5359747,194.55,194.54,36.04]
[1761374064336,2.5359747,194.56,194.54,36.04]
[1761374064532,2.5359747,194.55,194.54,36.04]
[1761374064944,3.2359747,194.55,194.54,36.04]
[1761374065762,8.37604152,194.55,194.54,36.04]
[1761374065955,8.37604152,194.55,194.51,36.04]
[1761374066146,2.5359747,194.53,194.51,36.04]
[1761374066369,3.2359747,194.54,194.51,36.04]
[1761374066573,0.7,194.53,194.51,36.04]
[1761374066945,3.2359747,194.53,194.51,36.04]
[1761374067276,3.2359747,194.53,194.51,41.1811224]
[1761374067743,2.5359747,194.53,194.51,41.1811224]
[1761374067941,0.7,194.52,194.51,41.1811224]
[1761374068282,0.7,194.52,194.51,36.04]
[1761374068449,3.2359747,194.52,194.51,36.04]
[1761374072981,2.5359747,194.54,194.51,36.04]
[1761374073372,0.7,194.53,194.51,36.04]
[1761374073685,3.2359747,194.53,194.51,36.04]
[1761374074286,3.2359747,194.52,194.51,36.04]
[1761374081993,8.37683425,194.52,194.51,36.04]
[1761374082197,8.37683425,194.52,194.43,10.87647521]
[1761374082397,2.5359747,194.47,194.44,35.98]
[1761374082992,3.2359747,194.47,194.44,35.98]
[1761374083774,2.5359747,194.47,194.44,36.64]
[1761374084601,3.2359747,194.47,194.44,35.98]
[1761374084990,2.5359747,194.47,194.44,36.64]
[1761374085594,2.5359747,194.47,194.44,35.98]
[1761374085786,3.2359747,194.47,194.44,35.98]
[1761374086197,2.5359747,194.47,194.44,36.64]
[1761374087477,2.5359747,194.47,194.44,41.78296749]
[1761374088400,3.2359747,194.48,194.44,41.78296749]
[1761374089688,2.5359747,194.49,194.45,5.80270642]
[1761374089888,2.5359747,194.5,194.45,5.80270642]
[1761374090089,2.5359747,194.5,194.46,0.72]
[1761374090273,2.5359747,194.5,194.47,35.94]
[1761374090676,2.5359747,194.5,194.47,36.66]
[1761374091109,2.5359747,194.51,194.47,41.08215688]
[1761374091278,2.5359747,194.51,194.48,0.72]
[1761374091695,0.72,194.53,194.48,0.72]
[1761374091897,2.5359747,194.51,194.48,0.72]
[1761374092406,3.2559747,194.51,194.47,41.80215688]
[1761374092905,2.5359747,194.51,194.47,41.08215688]
[1761374093109,2.5359747,194.51,194.48,0.72]
[1761374093906,3.2559747,194.51,194.47,41.80215688]
[1761374094204,2.5359747,194.51,194.48,0.72]
[1761374095391,2.5359747,194.52,194.48,5.86170232]
[1761374096102,3.2559747,194.52,194.48,5.86170232]
[1761374098511,0.72,194.52,194.48,5.86170232]
[1761374099585,3.2559747,194.52,194.48,5.86170232]
[1761374100696,0.69,194.51,194.48,5.86170232]
[1761374100893,0.69,194.51,194.48,5.14170232]
[1761374101296,2.5359747,194.51,194.48,5.80170232]
[1761374101487,3.2259747,194.51,194.48,5.14170232]
[1761374101693,2.5359747,194.49,194.47,35.94]
[1761374101905,2.5359747,194.49,194.45,16.01918541]
[1761374102213,2.5359747,194.48,194.46,35.92]
[1761374102390,2.5359747,194.48,194.46,36.58]
[1761374102591,2.5359747,194.48,194.47,35.92]
[1761374103189,2.5359747,194.49,194.47,35.92]
[1761374103907,0.69,194.5,194.47,35.92]
[1761374104108,2.5359747,194.49,194.47,35.92]
[1761374105518,3.2259747,194.49,194.47,35.92]
[1761374107505,2.5359747,194.48,194.47,35.92]
[1761374108907,1.62556926,194.48,194.47,35.92]
[1761374110619,2.31556926,194.48,194.47,35.92]
[1761374111010,1.62556926,194.48,194.47,35.92]
[1761374112524,2.31556926,194.48,194.47,35.92]
[1761374113120,0.69,194.48,194.47,41.06218131]
[1761374113728,1.62556926,194.49,194.47,41.06218131]
[1761374114030,2.31556926,194.49,194.47,41.06218131]
[1761374115206,0.69,194.48,194.47,41.06218131]
[1761374115614,2.31556926,194.49,194.47,41.06218131]
[1761374118031,0.69,194.49,194.47,41.06218131]
[1761374148048,2.31556926,194.49,194.47,41.06218131]
[1761374148746,2.30556926,194.49,194.47,41.06218131]
[1761374149345,1.62556926,194.49,194.47,41.06218131]
[1761374149651,0.68,194.48,194.47,41.06218131]
[1761374152153,0.68,194.48,194.47,35.92]
[1761374160657,5.14218131,194.47,194.45,35.72]
[1761374160862,1.62556926,194.46,194.45,35.72]
[1761374161045,2.33556926,194.46,194.45,35.72]
[1761374162032,2.33556926,194.46,194.42,0.2]
[1761374162033,7.478015,194.46,194.42,0.2]
[1761374162239,1.62556926,194.43,194.42,0.2]
[1761374162547,1.62556926,194.43,194.42,35.92]
[1761374162749,2.33556926,194.43,194.42,35.92]
[1761374168043,7.47880847,194.43,194.42,0.2]
[1761374168463,12.62179352,194.43,194.42,0.2]
[1761374168767,13.53842636,194.43,194.42,0.2]
[1761374174064,16.08062846,194.43,194.36,0.1]
[1761374174253,2.5422021,194.37,194.36,0.1]
[1761374174777,5.31251784,194.37,194.36,0.1]
[1761374175647,10.45734471,194.37,194.36,0.1]
[1761374183978,2.5422021,194.39,194.36,5.89509158]
[1761374184155,2.5422021,194.39,194.36,0.75]
[1761374184360,2.5422021,194.38,194.36,0.75]
[1761374184877,2.5422021,194.38,194.36,0.1]
[1761374185382,2.5422021,194.38,194.36,0.75]
[1761374188280,5.86412809,194.4,194.36,0.75]
[1761374188581,2.5422021,194.38,194.36,0.75]